Cogmind - Beta 13 @@@ ROGUE MODE // 2024.05.14 @ 20:24:00 Player: Ronin_tempest Result: Self-destructed Performance ------------- Evolutions (3) 1500 Regions Visited (6) 1200 Robots Destroyed (129) 645 Value Destroyed (4487) 4487 Prototype IDs (16) 320 Alien Tech Used (0) 0 Bonus (416) 416 TOTAL SCORE: 8568 Bonus ------- High Alert Combat Kills 416 Cogmind --------- Core Integrity 82/700 Matter 250/300 Energy 100/100 System Corruption 17% Temperature Cool (0) Movement Core (50) Location -7/Factory Parts ------- > --- POWER (1) -------- (None) > --- PROPULSION (4) --- (None) > --- UTILITY (4) ------ (None) > --- WEAPON (4) ------- (None) > --- INVENTORY (5) ---- Improved Deuterium Engine Improved Treads Improved Light Armor Plating High-powered Tractor Beam Piercing Trap Peak State ------------ > --- POWER ------------ Light Angular Momentum Engine > --- PROPULSION ------- Light Treads Light Treads Advanced Treads Medium Treads > --- UTILITY ---------- Improved Cooling System Large Storage Unit Improved Light Armor Plating Improved Medium Armor Plating > --- WEAPON ----------- Particle Gun Heavy Particle Gun Advanced Beam Rifle Flak Gun > --- INVENTORY -------- Improved Deuterium Engine Reinforced Deuterium Engine Light Treads Improved Treads Improved Cooling System Hardened Medium Armor Plating Improved Medium Armor Plating High-powered Tractor Beam Field Laser Pulse Rifle Advanced Assault Cannon Grenade Launcher Rocket Launcher Makeshift Sword Piercing Trap [Rating: 44] Favorites ----------- Power Ion Engine Engine Ion Engine Power Core Nuclear Core Propulsion Light Treads Treads Light Treads Leg Aluminum Leg Utility Large Storage Unit Device Improved Cooling System Storage Large Storage Unit Processor Improved Targeting Computer Protection Light Armor Plating Weapon Assault Rifle Energy Gun Heavy Particle Gun Ballistic Gun Assault Rifle Ballistic Cannon Battle Cannon Launcher Subdweller Shrapnel Launcher Special Weapon Enhanced Flamer Slashing Weapon Makeshift Sword Build | -11 -10 -10 -8 -7 -7 -7 ------- Run | Yrd Mat Sub Mat Fac Was Fac Slots Evolved 6 | . . . 4 2 . . Power . | . . . . . . . Propulsion 2 | . . . . 2 . . Utility 2 | . . . 2 . . . Weapon 2 | . . . 2 . . . Parts Attached 95 | 3 9 5 39 37 1 1 Power 8 | . 1 . 5 1 . 1 Engine 7 | . 1 . 4 1 . 1 Core 1 | . . . 1 . . . Reactor . | . . . . . . . Propulsion 26 | 2 2 2 6 14 . . Treads 26 | 2 2 2 6 14 . . Leg . | . . . . . . . Wheel . | . . . . . . . Hover . | . . . . . . . Flight . | . . . . . . . Utility 24 | . 4 . 11 8 1 . Device 4 | . . . 2 2 . . Storage 1 | . 1 . . . . . Processor 3 | . 1 . 2 . . . Hackware . | . . . . . . . Protection 16 | . 2 . 7 6 1 . Artifact . | . . . . . . . Weapon 37 | 1 2 3 17 14 . . Energy Gun 11 | . . . 5 6 . . Energy Cannon . | . . . . . . . Ballistic Gun 18 | 1 2 1 9 5 . . Ballistic Cannon 1 | . . 1 . . . . Launcher 4 | . . 1 . 3 . . Special Weapon 1 | . . . 1 . . . Impact Weapon . | . . . . . . . Slashing Weapon 2 | . . . 2 . . . Piercing Weapon . | . . . . . . . Special Melee Weapon . | . . . . . . . Unidentified Prototypes 2 | . . . 2 . . . Parts Lost 31 | . . . 15 11 5 . Power 3 | . . . 1 1 1 . Propulsion 8 | . . . 3 4 1 . Utility 7 | . . . 4 2 1 . Weapon 13 | . . . 7 4 2 . Highest Loss Streak 7 | . . . 7 4 5 . To Critical Strikes . | . . . . . . . Average Slot Usage (%) 96 | . 97 99 95 96 69 . Engine 10 | . 13 14 8 6 5 . Treads 24 | . 27 28 17 29 19 . Device 2 | . . . 2 5 5 . Storage 10 | . 14 14 9 7 5 . Processor 6 | . 5 . 14 1 . . Protection 10 | . 7 14 8 11 10 . Energy Gun 9 | . . . 10 21 16 . Ballistic Gun 16 | . 27 15 18 7 5 . Ballistic Cannon 3 | . . 9 2 . . . Naked Turns 36 | . . . . . 29 7 Heaviest Build 64 | 14 32 40 59 64 58 9 Greatest Support 93 | 40 40 40 45 93 93 3 Greatest Overweight (x) 8 | . . . 2 1 8 2 Average Overweight (x) . | . . . . . . . Largest Inventory Capacity 15 | 8 15 15 15 15 15 5 Average Capacity 14 | 8 10 15 15 15 12 5 Most Carried 15 | 6 12 15 15 15 15 5 Average Carried 13 | 6 8 14 14 14 12 5 Final Capacity 15 | 8 15 15 15 15 5 5 Final Carried 15 | 6 12 15 15 15 5 5 Class Distribution -------------------- 45% | Mutant 26% | Scavenger-Gunner 21% | Scavenger-Tank 6% | Gunner Dominant Class ---------------- Mutant | -10/Materials Mutant | -10/Subcaves Scavenger-Gunner | -8/Materials Scavenger-Tank | -7/Factory Scavenger-Tank | -7/Waste Scavenger-Tank | -7/Factory Resources | -11 -10 -10 -8 -7 -7 -7 ----------- Run | Yrd Mat Sub Mat Fac Was Fac Matter Collected 3280 | 233 357 570 1197 923 . . Remotely . | . . . . . . . Salvage Created 4560 | 27 402 497 1903 1731 . . Parts 253 | . 36 40 103 74 . . Haulers Intercepted 6 | . 2 . 3 1 . . Recyclers Shooed 4 | . . . . 4 . . Parts Field Recycled . | . . . . . . . Retrieved Matter . | . . . . . . . Parts Self-Destructed 14 | . . 14 . . . . Prevented . | . . . . . . . Kills | -11 -10 -10 -8 -7 -7 -7 ------- Run | Yrd Mat Sub Mat Fac Was Fac Combat Hostiles Destroyed 97 | . 8 15 37 37 . . Melee 2 | . . . 2 . . . Guns 73 | . 8 6 32 27 . . Cannons 9 | . . 6 3 . . . AOE 11 | . . 3 . 8 . . Classes Destroyed 17 | 1 6 2 5 3 . . Worker 4 | . 1 . 3 . . . Builder 2 | . . . 1 1 . . Tunneler 2 | 1 . . . 1 . . Hauler 6 | . 2 . 3 1 . . Recycler 4 | . . . 2 2 . . Operator 1 | . 1 . . . . . Watcher 13 | . 3 . 5 5 . . Swarmer 19 | . 5 1 6 7 . . Grunt 40 | . 3 1 18 18 . . Duelist 1 | . . . . 1 . . Protector 1 | . . . . 1 . . Sentry 13 | . . 1 9 3 . . Specialist 1 | . . . 1 . . . Hunter 6 | . . . 2 4 . . Programmer 2 | . . . . 2 . . Heavy 2 | . . . 1 1 . . Subdweller 12 | . . 12 . . . . Best Kill Streak 6 | 1 3 4 5 6 . . Combat Bots Only 6 | . 2 4 5 6 . . Max Kills in Single Turn 3 | 1 1 1 2 3 . . Gunslinging 1 | . . . 1 . . . Exploded 3 | . . 1 . 3 . . Melee 1 | . . . 1 . . . Uniques/NPCs Destroyed . | . . . . . . . Combat | -11 -10 -10 -8 -7 -7 -7 -------- Run | Yrd Mat Sub Mat Fac Was Fac Hostile Shots Fired 544 | . 49 34 253 200 8 . Missed 159 | . 18 9 65 66 1 . Damage Taken 6408 | . 305 628 2934 2211 330 . Core 1041 | . 45 98 280 421 197 . Absorbed by Shields . | . . . . . . . Regen/Repaired (Parts) 587 | . 260 . 166 161 . . Core Remaining (%) 63 | 100 . 42 49 . . . Volleys Fired 314 | 3 42 76 109 84 . . Largest 4 | 2 2 2 4 4 . . Hottest 222 | 40 40 70 191 222 . . Shots Fired 890 | 6 84 113 368 319 . . Gun 762 | 6 84 41 319 312 . . Cannon 106 | . . 67 39 . . . Launcher 12 | . . 5 . 7 . . Special 10 | . . . 10 . . . Kinetic 557 | 6 84 113 262 92 . . Thermal 326 | . . . 106 220 . . Explosive 7 | . . . . 7 . . Electromagnetic . | . . . . . . . Robot Hit Streak 17 | 3 7 17 16 13 . . Robot Miss Streak 11 | 1 4 2 6 11 . . Penetration Max 1 | . . . 1 . . . Secondary Targets 9 | . . 1 4 4 . . Max Gunslinging Chain 1 | . . 1 1 1 . . Shots Hit Robots 564 | 4 47 64 236 213 . . Core Hits 279 | 1 20 32 105 121 . . Critical Kills . | . . . . . . . Critical Parts Destroyed 3 | . . . 3 . . . Critical Strikes 25 | . . 3 12 10 . . Burn 16 | . . . 6 10 . . Destroy 3 | . . . 3 . . . Blast 5 | . . 3 2 . . . Sever 1 | . . . 1 . . . Melee Attacks 12 | . . . 12 . . . Impact . | . . . . . . . Slashing 12 | . . . 12 . . . Piercing . | . . . . . . . Sneak Attacks 1 | . . . 1 . . . Combat Hostiles . | . . . . . . . Follow-up Attacks . | . . . . . . . Damage Inflicted 11527 | 48 615 1489 4727 4648 . . Guns 8752 | 48 615 692 3802 3595 . . Cannons 1094 | . . 541 553 . . . Explosions 1309 | . . 256 . 1053 . . Melee 314 | . . . 314 . . . Ramming 2 | . . . 2 . . . Kinetic 6145 | 48 615 1489 3083 910 . . Thermal 4013 | . . . 1328 2685 . . Explosive 1053 | . . . . 1053 . . Electromagnetic . | . . . . . . . Impact . | . . . . . . . Slashing 314 | . . . 314 . . . Piercing . | . . . . . . . Highest Corruption 17 | . . . . 2 17 17 Average Corruption 2 | . . . . 1 6 17 Corruption Purged . | . . . . . . . Corruption Blocked . | . . . . . . . Effects 25 | . . . . 22 3 . Message Errors 10 | . . . . 10 . . Matter Fused 5 | . . . . 4 1 . Heat Flow Errors 2 | . . . . 2 . . Energy Discharges 1 | . . . . 1 . . Parts Rejected 1 | . . . . . 1 . Data Loss (minor) 2 | . . . . 1 1 . Data Loss (major) 1 | . . . . 1 . . Misfires 2 | . . . . 2 . . Weapon Failures 1 | . . . . 1 . . Overload Shots . | . . . . . . . Overflow Damage 42 | . . . 9 33 . . Projectiles 9 | . . . 9 . . . Explosions 33 | . . . . 33 . . Melee . | . . . . . . . Knockbacks 10 | . . 3 7 . . . Impact . | . . . . . . . Kinetic 9 | . . 3 6 . . . Secondary 1 | . . . 1 . . . Self-Inflicted Damage 254 | . . 14 53 187 . . Shots 5 | . . 1 1 3 . . Rammed 4 | . . . 4 . . . Targets Rammed 4 | . . . 4 . . . Kicked . | . . . . . . . Crushed . | . . . . . . . Highest Temperature 581 | . 2 255 466 581 . . Average Temperature 136 | . 2 162 118 161 . . Received Heat Transfer 2132 | . 75 350 1359 348 . . Effects 29 | . . . 10 19 . . Shutdowns 8 | . . . 3 5 . . Energy Bleed 2 | . . . 1 1 . . Interference 10 | . . . 4 6 . . Matter Decay 5 | . . . 1 4 . . Short Circuit 1 | . . . . 1 . . Damage (minor) 1 | . . . 1 . . . Damage (core) 2 | . . . . 2 . . Siege Activations . | . . . . . . . Robots Corrupted . | . . . . . . . Combat Hostiles . | . . . . . . . Parts Fried . | . . . . . . . Impact Corruptions . | . . . . . . . Robots Melted 2 | . . . . 2 . . Combat Hostiles 2 | . . . . 2 . . Parts Melted 19 | . . 1 5 13 . . Heat Transferred 9791 | . . . 3483 6308 . . Parts Sabotaged . | . . . . . . . Parts Stolen . | . . . . . . . Parts Stripped . | . . . . . . . Power Chain Reactions . | . . . . . . . Alert | -11 -10 -10 -8 -7 -7 -7 ------- Run | Yrd Mat Sub Mat Fac Was Fac Peak Influence 770 | 5 150 . 613 770 283 173 Initial 266 | . 3 . . 266 253 173 Average 283 | 3 45 . 289 442 261 173 Maximum Alert Level 3 | . . . 2 3 1 . Low Security (%) 43 | 100 100 . 45 5 . 100 Level 1 22 | . . . 20 37 100 . Level 2 28 | . . . 34 40 . . Level 3 5 | . . . . 15 . . Level 4 . | . . . . . . . Level 5 . | . . . . . . . High Security . | . . . . . . . Max Security . | . . . . . . . Squads Dispatched 24 | . 2 . 8 14 . . Investigation 9 | . 1 . 3 5 . . Extermination 2 | . . . . 2 . . Reinforcement 9 | . 1 . 3 5 . . Assault 4 | . . . 2 2 . . Garrison . | . . . . . . . Intercept . | . . . . . . . Searches Triggered . | . . . . . . . Construction Impeded 1 | . . . . 1 . . Haulers Reinforced 1 | . . . . 1 . . Active Scanning Responses . | . . . . . . . Cargo Convoy Interrupts . | . . . . . . . Stealth | -11 -10 -10 -8 -7 -7 -7 --------- Run | Yrd Mat Sub Mat Fac Was Fac Distress Signals 8 | . 1 . 6 1 . . Communications Jammed . | . . . . . . . Distress Signals . | . . . . . . . Times Spotted 145 | . 18 14 62 45 6 . Peak Tracking Total 8 | . 4 2 8 5 6 . Tactical Retreats 6 | . . . 6 . . . Traps | -11 -10 -10 -8 -7 -7 -7 ------- Run | Yrd Mat Sub Mat Fac Was Fac Traps Triggered 8 | . . 2 2 4 . . Indirectly . | . . . . . . . Trap Hack Attempts . | . . . . . . . Triggered . | . . . . . . . Disarmed . | . . . . . . . Reprogrammed . | . . . . . . . Reused 1 | . . 1 . . . . Traps Extracted . | . . . . . . . Installed 1 | . . 1 . . . . Triggered . | . . . . . . . Most Traps Carried 1 | . . 1 1 1 1 1 Machines | -11 -10 -10 -8 -7 -7 -7 ---------- Run | Yrd Mat Sub Mat Fac Was Fac Machines Disabled 13 | . 1 . 5 7 . . Max in Single Turn 4 | . 1 . 2 4 . . Machines Repaired . | . . . . . . . Machines Dismantled . | . . . . . . . Machines Sabotaged . | . . . . . . . Overloaded Fab Kills . | . . . . . . . Hacking | -11 -10 -10 -8 -7 -7 -7 --------- Run | Yrd Mat Sub Mat Fac Was Fac Machines Accessed 25 | . 6 1 9 9 . . Terminals 15 | . 5 . 6 4 . . Fabricators 3 | . . . . 3 . . Repair Stations 4 | . 1 . 2 1 . . Recycling Units . | . . . . . . . Scanalyzers 2 | . . . 1 1 . . Garrison Access . | . . . . . . . Total Hacks 96 | . 32 1 34 29 . . Successful 56 | . 21 1 16 18 . . Failed 39 | . 10 . 18 11 . . Catastrophic 7 | . . . 4 3 . . Database Lockouts 1 | . 1 . . . . . Manual 35 | . 13 . 18 4 . . Terminals 44 | . 16 . 20 8 . . Fabricators 9 | . . . . 9 . . Repair Stations 29 | . 16 . 10 3 . . Recycling Units . | . . . . . . . Scanalyzers 13 | . . . 4 9 . . Garrison Access . | . . . . . . . Terminal Hacks 8 | . 3 1 3 1 . . Part Schematic 1 | . . . 1 . . . Robot Analysis 2 | . 2 . . . . . Alert Level 1 | . . . 1 . . . Unreport Threat 1 | . . . . 1 . . Locate Traps 1 | . . . 1 . . . Recall Reinforcements 1 | . 1 . . . . . Derelict Proto ID Bank 1 | . . 1 . . . . Fabricator Hacks 4 | . . . . 4 . . Load Schematic 3 | . . . . 3 . . Build 1 | . . . . 1 . . Repair Station Hacks 22 | . 15 . 5 2 . . Scan Component 12 | . 8 . 3 1 . . Repair 10 | . 7 . 2 1 . . Recycling Unit Hacks . | . . . . . . . Scanalyzer 13 | . . . 4 9 . . Insert Component 8 | . . . 4 4 . . Analyze 5 | . . . . 5 . . Garrison Access Hacks . | . . . . . . . Unauthorized Hacks 9 | . 3 . 4 2 . . Terminals 9 | . 3 . 4 2 . . Assimilate 1 | . 1 . . . . . Botnet 6 | . 1 . 3 2 . . Operators 2 | . 1 . 1 . . . Fabricators . | . . . . . . . Repair Stations . | . . . . . . . Recycling Units . | . . . . . . . Scanalyzers . | . . . . . . . Garrison Access . | . . . . . . . Data Cores Recovered . | . . . . . . . Used . | . . . . . . . Hacking Detections 21 | . 6 . 7 8 . . Full Trace Events 9 | . 1 . 3 5 . . Feedback Events . | . . . . . . . Feedback Blocked . | . . . . . . . Robot Schematics Acquired . | . . . . . . . Robots Built . | . . . . . . . Authchips . | . . . . . . . Time . | . . . . . . . Total Robot Build Rating . | . . . . . . . Part Schematics Acquired 5 | . . . 1 4 . . Parts Built 2 | . . . . 2 . . Authchips . | . . . . . . . Time 31 | . . . . 31 . . Total Part Build Rating 4 | . . . . 4 . . Parts Repaired 10 | . 7 . 2 1 . . Time 284 | . 182 . 64 38 . . Parts Recycled . | . . . . . . . Recycled Matter . | . . . . . . . Retrieved Matter . | . . . . . . . Retrieved Components . | . . . . . . . Parts Scanalyzed 4 | . . . . 4 . . Part Schematics Acquired 4 | . . . . 4 . . Parts Damaged . | . . . . . . . Bothacking | -11 -10 -10 -8 -7 -7 -7 ------------ Run | Yrd Mat Sub Mat Fac Was Fac Used RIF Installer . | . . . . . . . Robots Hacked . | . . . . . . . Non-combat . | . . . . . . . Combat . | . . . . . . . Robot Hacks Applied . | . . . . . . . Relay Couplers Released . | . . . . . . . Fabnet Peak Effective % . | . . . . . . . Robots Rewired . | . . . . . . . Allies Hacked . | . . . . . . . Hacks Repelled . | . . . . . . . Allies | -11 -10 -10 -8 -7 -7 -7 -------- Run | Yrd Mat Sub Mat Fac Was Fac Total Allies 1 | . 1 . . . . . Largest Group 1 | . 1 1 . . . . Highest-Rated Group 10 | . 10 10 . . . . Highest-Rated Ally 10 | . 10 10 . . . . Total Orders . | . . . . . . . Ally Attacks . | . . . . . . . Total Damage . | . . . . . . . Kills . | . . . . . . . Allies Corrupted . | . . . . . . . Allies Melted . | . . . . . . . Intel | -11 -10 -10 -8 -7 -7 -7 ------- Run | Yrd Mat Sub Mat Fac Was Fac Robot Analysis Total 2 | . 2 . . . . . Derelict Logs Recovered 2 | . . 2 . . . . Drone Launches . | . . . . . . . Drone Recoveries . | . . . . . . . Exploration | -11 -10 -10 -8 -7 -7 -7 ------------- Run | Yrd Mat Sub Mat Fac Was Fac Turns Passed 10072 | 33 1675 2508 3241 2482 118 15 Spaces Moved 4665 | 13 800 1402 1120 1216 100 14 Core 63 | . . . . . 49 14 Treads 4602 | 13 800 1402 1120 1216 51 . Legs . | . . . . . . . Wheels . | . . . . . . . Hover . | . . . . . . . Flight . | . . . . . . . Fastest Speed 50 | 160 160 160 152 155 50 50 Average Speed 172 | 160 160 160 219 156 113 85 Slowest Speed 450 | 160 160 160 320 232 450 150 Overloaded Moves . | . . . . . . . Propulsion Burnouts . | . . . . . . . Robots Hopped . | . . . . . . . Cave-ins Triggered . | . . . . . . . Exploration Rate (%) 51 | 2 98 65 90 35 69 2 Regions Visited 6 Branch Regions 1 Pre-discovered Areas 1 | . . 1 . . . . Known Exits Taken 1 | . . 1 . . . . Unknown Exits Taken 3 | 1 1 . 1 . . . Scrap Searched 20 | . . 20 . . . . Spaces Dug . | . . . . . . . Terrain Destroyed 144 | . . 50 20 74 . . Melee . | . . . . . . . Projectile 10 | . . . 10 . . . AOE 134 | . . 50 10 74 . . Terrain Rammed . | . . . . . . . Walls Destroyed . | . . . . . . . Machines Disabled . | . . . . . . . Actions | -11 -10 -10 -8 -7 -7 -7 --------- Run | Yrd Mat Sub Mat Fac Was Fac Total 6028 | 18 1110 1558 1627 1596 103 16 Wait 817 | . 243 51 292 228 3 . Move 4660 | 12 799 1401 1119 1216 99 14 Hop . | . . . . . . . Pick Up 62 | . 11 11 22 18 . . Fast Attach 41 | . 8 2 15 14 1 1 Attach 31 | . . . 17 14 . . Detach 14 | . 1 . 11 2 . . Swap 23 | 3 1 3 7 9 . . Drop 49 | . 5 13 19 11 . 1 Fire 314 | 3 42 76 109 84 . . Melee 12 | . . . 12 . . . Ram . | . . . . . . . Kick . | . . . . . . . Crush 4 | . . . 4 . . . Escape Stasis . | . . . . . . . Rewire . | . . . . . . . Trap 1 | . . 1 . . . . Miscellaneous . | . . . . . . . Route ------- -11/Scrapyard -10/Materials (discovered 6 exits: [*Mat x3] / [*Min x2] / *Sub) -10/Subcaves (discovered 2 exits: *Mat x2) -8/Materials (discovered 3 exits: *Fac x2 / [*Sto]) -7/Factory -7/Waste -7/Factory History --------- Turn | Location | Event 15 | -11/Scrapyard | Discovered new exit (range 3) 34 | -11/Scrapyard | Entered Materials 303 | -10/Materials | Build established: Mutant 438 | -10/Materials | Discovered new exit (range 16) 588 | -10/Materials | Discovered new exit (range 9) 715 | -10/Materials | Discovered new exit (range 15) 789 | -10/Materials | Central database locked down 867 | -10/Materials | Discovered new exit (range 10) 1159 | -10/Materials | Discovered new exit (range 4) 1196 | -10/Materials | Repaired Lgt. Armor Plating 1224 | -10/Materials | Repaired Lgt. Treads 1251 | -10/Materials | Repaired Lgt. Treads 1279 | -10/Materials | Repaired Ion Engine 1306 | -10/Materials | Repaired Assault Rifle 1334 | -10/Materials | Repaired Assault Rifle 1387 | -10/Materials | Repaired Lgt. Treads 1538 | -10/Materials | Discovered new exit (range 8) 1709 | -10/Materials | Entered Subcaves 1709 | -10/Subcaves | Accompanied by 1 ally 1756 | -10/Subcaves | Discovered new exit (range 6) 1764 | -10/Subcaves | Shifting Twisted Machinery released Sub. Shrapnel Launcher 1764 | -10/Subcaves | Shifting Twisted Machinery released Scrap Shield 1900 | -10/Subcaves | Visited triangular shrine 1911 | -10/Subcaves | Found Prototype Device 1932 | -10/Subcaves | Learned location of Zion (-7) 2008 | -10/Subcaves | Identified exit to Materials 2173 | -10/Subcaves | Visited 4L-MR0's lab 2372 | -10/Subcaves | A swath of the cavern ceiling suddenly collapsed 2793 | -10/Subcaves | Disturbed a concealed Subdweller 3389 | -10/Subcaves | Disturbed a concealed Subdweller 3467 | -10/Subcaves | Core integrity fell below 50% 3716 | -10/Subcaves | Shifting Twisted Machinery released Scrap Shield 3720 | -10/Subcaves | Shifting Twisted Machinery released Barrage Gun 4217 | -10/Subcaves | Entered Materials 4217 | -8/Materials | Evolved 4 slots: Utility x2, Weapon x2 4576 | -8/Materials | Build established: Gunner 4805 | -8/Materials | Identified V3-11A's Pendant 5048 | -8/Materials | Build established: Scavenger-Gunner 5149 | -8/Materials | Lost 7 parts (2n1u4w) 5409 | -8/Materials | Lost 3 parts (1p1u1w) 5802 | -8/Materials | Repaired Lgt. Armor Plating 5899 | -8/Materials | Repaired Hpw. Shotgun 6327 | -8/Materials | Discovered new exit (range 12) 6836 | -8/Materials | Discovered new exit (range 16) 7195 | -8/Materials | Core integrity fell below 50% 7219 | -8/Materials | Lost 4 parts (1n1u2w) 7417 | -8/Materials | First assault squad dispatched 7422 | -8/Materials | Discovered new exit (range 16) 7458 | -8/Materials | Entered Factory 7458 | -7/Factory | Evolved 2 slots: Propulsion x2 7695 | -7/Factory | Lost 4 parts (1n1u2w) 8114 | -7/Factory | Build established: Scavenger-Tank 8529 | -7/Factory | Core integrity fell below 50% 8658 | -7/Factory | First assault squad dispatched 9137 | -7/Factory | Fabricated Imp. Treads (x2) 9618 | -7/Factory | Repaired Adv. Treads 9829 | -7/Factory | Discovered new exit (range 6) 9940 | -7/Factory | Sucked down chute 9940 | -7/Factory | Entered Waste 9952 | -7/Waste | Spotted C-40 Crusher 9955 | -7/Waste | EMP discharged 9999 | -7/Waste | Spotted C-40 Crusher 10007 | -7/Waste | Crushed by Compactor (1 part destroyed, 2 dropped) 10016 | -7/Waste | Spotted C-40 Crusher 10020 | -7/Waste | Crushed by Compactor (1 part destroyed, 2 dropped) 10022 | -7/Waste | Spotted C-40 Crusher 10023 | -7/Waste | Crushed by Compactor (1 part destroyed, 1 dropped) 10026 | -7/Waste | Crushed by Compactor (1 part destroyed, 1 dropped) 10028 | -7/Waste | Spotted C-40 Crusher 10029 | -7/Waste | Crushed by Compactor (1 part destroyed, 2 dropped) 10032 | -7/Waste | Core integrity fell below 20% 10045 | -7/Waste | Spotted C-40 Crusher 10045 | -7/Waste | Discovered new exit (range 16) 10055 | -7/Waste | EMP discharged 10055 | -7/Waste | System corruption reached 10% 10058 | -7/Waste | Entered Factory 10060 | -7/Factory | Lost 5 parts (1p1n1u2w) 10073 | -7/Factory | Self-destructed Last Messages --------------- 10030_ Flak Gun crushed. 10031_ Adv. Assault Cannon crushed. 10031_ Hrd. Medium Armor Plating crushed. 10031_ Imp. Treads crushed. 10032_ Imp. Cooling System crushed. 10032_ Imp. Medium Armor Plating crushed. 10032_ Lrg. Storage Unit crushed. 10032_ Power Maul crushed. 10036_ Rocket Launcher crushed. 10036_ Particle Gun crushed. 10045_ ALERT: Foreign system detected. Charging EMP. 10045_ EXIT=FOUND 10055_ System corrupted (+10). 10055_ Hyp. Mass Driver fried beyond repair. 10056_ System corrupted: Matter fused (-7). LOCATION=UNKNOWN GOAL=ESCAPE 10061_ Acquired Deuterium Engine. 10069_ Dropped Deuterium Engine. Map ----- +----------------------------------------------------+ | ????????????????????????????????????? | | ????????????????????????????????????? | | ????????????????????????????????????? | | ????????????????????????????????????? | | ????????????????????????????????????? | | ????????????????????????????????????? | | ????????????????????????????????????? | | ????????????????????????????????????? | | ????????????????????????????????????? | | ????????????????????????????????????? | | ?????????????? ?????????????????????? | | ????????????? ???????????????????? | | ????????????? ????????????????? | | ????????????? #???????????????? | | ????????????? ????????????????? | | ????????????? ????????????????? | | ???????????"" ????????????????? | | ??????????""" ????????????????? | | ???????#? """ "" ????????????????? | | ???????# """ "" """ ???????????? | | ???????# "T """ "??????????? | | ???????# "" "" ????????????? | | ? ????# "" "" """????????????? | | ??" "??# "T """????????????? | | ??" " # "" ]] """ ""?????????? | | ? " " /k ""@ ]] ???????? | | ??? " # """????????????? | | ???????# ! """????????????? | | ???????#####+## """??"?????????? | | ???????# # ?????????? | | ???????# *# """ """ ""?????????? | | ???????# ! # """ """ """ ????? | | ???????# # """ """ """ ????? | | ???????# + ????? | | ???????# # ????? | | ???????# # ???? | | ???????# # ????? | | ???????# # ########??????? | | ???????# # #?????????????? | | ???????# # #?????????????? | | ???????# # #?????????????? | | ???????# # #?????????????? | | ???????################?????????????? | | ????????????????????????????????????? | | ????????????????????????????????????? | | ????????????????????????????????????? | | ????????????????????????????????????? | | ????????????????????????????????????? | | ????????????????????????????????????? | | ????????????????????????????????????? | +----------------------------------------------------+ Best States ------------- Heat Dissipation 61 Energy Generation 18 Energy Capacity 290 Matter Stores 300 Matter Capacity 300 Sight Range 16 Terrain Scan Density 10 Armor Coverage 950 Evasion (%) 50 Targeting Accuracy 11 Recoil Reduction 4 Item Schematics ----------------- Med. Armor Plating | -8/Materials | Hacked Imp. Medium Armor Plating | -7/Factory | Scanalyzed Imp. Treads | -7/Factory | Scanalyzed Hpw. Tractor Beam | -7/Factory | Scanalyzed Imp. Cooling System | -7/Factory | Scanalyzed Robot Schematics ------------------ None Fabricated ------------ Imp. Treads | x2 | -7/Factory Alien Tech Used ----------------- None Achievements -------------- None Challenges ------------ None Game ------ Seed FieldSchematicDissipator Manual? 0 Play Time 01:25:23 Cumulative 63.4 hours Start 2024.05.14 @ 18:48:57 End 2024.05.14 @ 20:24:00 Sessions 1 Manual Loads 0 Difficulty Rogue Special Mode None Game No. 46 Rogue 46 Adventurer 0 Explorer 0 Win Type - Total 1 Types 1/0/0/0/0/0/0/0/0 Lore% 34 Gallery% 35 Achievement% 34 Wizard Run 0 Options --------- Layout 1 ASCII 0 Keyboard 1 Movement Numpad Keybinds 1 Fullscreen 1 Font 24/Smallcaps Map View 50x35 Zoom Use 0% Tactical HUD 1 Map Filters NONE Filters NONE Steam 1 RUN: 6e930d3f-6354-4753-aed5-22fa994d2c62